[Event "Early-Titled-Tuesday-Blitz-February-20-2024"]
[Site "Chess.com"]
[Date "2024.02.20"]
[Round "3"]
[White "TigrVShlyape"]
[Black "ChessQueen"]
[Result "1-0"]
[WhiteElo "2929"]
[BlackElo "2715"]
[TimeControl "180+1"]
[EndTime "8:29:36 PST"]
[Termination "TigrVShlyape won by resignation"]

1. e4 {[%clk 0:03:00.9]} 1... c6 {[%clk 0:03:00.1]} 2. Nf3 {[%clk 0:02:59.9]}
2... d5 {[%clk 0:02:59.9]} 3. d3 {[%clk 0:03:00.5]} 3... Qc7 {[%clk 0:02:55.9]}
4. Nc3 {[%clk 0:02:59.1]} 4... dxe4 {[%clk 0:02:51.7]} 5. dxe4 {[%clk
0:02:58.9]} 5... Bg4 {[%clk 0:02:47.5]} 6. h3 {[%clk 0:02:50.2]} 6... Bxf3
{[%clk 0:02:40.5]} 7. Qxf3 {[%clk 0:02:49.6]} 7... Nd7 {[%clk 0:02:40.3]} 8. Bd2
{[%clk 0:02:15.7]} 8... Ngf6 {[%clk 0:02:26.9]} 9. g4 {[%clk 0:02:15.2]} 9... e6
{[%clk 0:02:13.2]} 10. g5 {[%clk 0:02:14.3]} 10... Ne5 {[%clk 0:02:11.9]} 11.
Qe2 {[%clk 0:02:13.3]} 11... Nfd7 {[%clk 0:02:09.7]} 12. h4 {[%clk 0:02:04.9]}
12... O-O-O {[%clk 0:02:03]} 13. O-O-O {[%clk 0:02:00.8]} 13... h6 {[%clk
0:01:40.6]} 14. gxh6 {[%clk 0:01:50.8]} 14... gxh6 {[%clk 0:01:40.7]} 15. h5
{[%clk 0:01:48.5]} 15... Nb6 {[%clk 0:01:26.1]} 16. Kb1 {[%clk 0:01:45.6]} 16...
Bg7 {[%clk 0:01:23.5]} 17. Rg1 {[%clk 0:01:40]} 17... Bf6 {[%clk 0:01:21]} 18.
Bc1 {[%clk 0:01:37.4]} 18... Rxd1 {[%clk 0:01:18.9]} 19. Nxd1 {[%clk 0:01:37.2]}
19... Nec4 {[%clk 0:01:14.6]} 20. f4 {[%clk 0:01:30.5]} 20... Bd4 {[%clk
0:01:09.6]} 21. Rg3 {[%clk 0:01:28.7]} 21... Rd8 {[%clk 0:01:03.4]} 22. b3
{[%clk 0:01:27.6]} 22... Nd6 {[%clk 0:01:00.5]} 23. c3 {[%clk 0:01:25.5]} 23...
Bh8 {[%clk 0:00:58.6]} 24. Bh3 {[%clk 0:01:22.1]} 24... Nb5 {[%clk 0:00:57.5]}
25. e5 {[%clk 0:01:19.8]} 25... Nd5 {[%clk 0:00:50.8]} 26. a4 {[%clk 0:01:13.1]}
26... Nd6 {[%clk 0:00:43.1]} 27. exd6 {[%clk 0:01:12.7]} 27... Qxd6 {[%clk
0:00:43.7]} 28. Qf2 {[%clk 0:01:04.7]} 28... Nxf4 {[%clk 0:00:37.5]} 29. Qxf4
{[%clk 0:01:01.1]} 29... Qxd1 {[%clk 0:00:37.7]} 30. Qc4 {[%clk 0:00:48.9]}
30... Qxh5 {[%clk 0:00:37.3]} 31. Bg2 {[%clk 0:00:45.5]} 31... Be5 {[%clk
0:00:33.2]} 32. Rg4 {[%clk 0:00:40.6]} 32... Qf5+ {[%clk 0:00:32.4]} 33. Qe4
{[%clk 0:00:38]} 33... Qxe4+ {[%clk 0:00:32.4]} 34. Rxe4 {[%clk 0:00:36.9]}
34... Bxc3 {[%clk 0:00:33.1]} 35. Bxh6 {[%clk 0:00:34.1]} 35... Rg8 {[%clk
0:00:27.6]} 36. Re2 {[%clk 0:00:33]} 36... Bd4 {[%clk 0:00:25.7]} 37. Kc2 {[%clk
0:00:31.7]} 37... a5 {[%clk 0:00:23.8]} 38. Bd2 {[%clk 0:00:31.7]} 38... Bb6
{[%clk 0:00:23.6]} 39. Be4 {[%clk 0:00:30.7]} 39... Rg3 {[%clk 0:00:22.3]} 40.
Bd3 {[%clk 0:00:30.7]} 40... Kd7 {[%clk 0:00:21.6]} 41. Bc4 {[%clk 0:00:30.8]}
41... Bc7 {[%clk 0:00:20.6]} 42. Rf2 {[%clk 0:00:29.8]} 42... Ke8 {[%clk
0:00:19.8]} 43. Bc3 {[%clk 0:00:25.6]} 43... Rh3 {[%clk 0:00:18.1]} 44. Rg2
{[%clk 0:00:25.1]} 44... b6 {[%clk 0:00:17.7]} 45. Bf6 {[%clk 0:00:23.7]} 45...
Rh2 {[%clk 0:00:17.1]} 46. Rxh2 {[%clk 0:00:23.7]} 46... Bxh2 {[%clk 0:00:18]}
47. Kd3 {[%clk 0:00:23.8]} 47... Bc7 {[%clk 0:00:18.1]} 48. Ke4 {[%clk
0:00:24.1]} 48... Kd7 {[%clk 0:00:18.5]} 49. Be2 {[%clk 0:00:22.3]} 49... Bd6
{[%clk 0:00:18.2]} 50. Bh5 {[%clk 0:00:22.2]} 50... Ke8 {[%clk 0:00:17.2]} 51.
Kd3 {[%clk 0:00:20.9]} 51... b5 {[%clk 0:00:17]} 52. Ke4 {[%clk 0:00:18.7]}
52... bxa4 {[%clk 0:00:14.9]} 53. bxa4 {[%clk 0:00:18.8]} 53... Bb4 {[%clk
0:00:14.3]} 54. Kd4 {[%clk 0:00:18.1]} 54... Bd6 {[%clk 0:00:14.6]} 55. Kc4
{[%clk 0:00:18.4]} 55... Bb4 {[%clk 0:00:11.8]} 56. Bd4 {[%clk 0:00:17.2]} 56...
Bd6 {[%clk 0:00:07.3]} 57. Bc3 {[%clk 0:00:17.2]} 57... Bc7 {[%clk 0:00:02.6]}
58. Kc5 {[%clk 0:00:17.5]} 58... Kd7 {[%clk 0:00:03.5]} 59. Bxf7 {[%clk
0:00:17.2]} 59... Bd8 {[%clk 0:00:02.7]} 60. Bh5 {[%clk 0:00:16.5]} 60... Bc7
{[%clk 0:00:03.1]} 61. Bf3 {[%clk 0:00:16.3]} 61... e5 {[%clk 0:00:02.4]} 62.
Bxc6+ {[%clk 0:00:15.9]} 62... Ke6 {[%clk 0:00:03.1]} 63. Be4 {[%clk 0:00:15.7]}
63... Bd8 {[%clk 0:00:02.2]} 64. Kb5 {[%clk 0:00:15.9]} 1-0

[Event "Early-Titled-Tuesday-Blitz-February-20-2024"]
[Site "Chess.com"]
[Date "2024.02.20"]
[Round "3"]
[White "NewBornNow"]
[Black "Maxfan2008"]
[Result "1-0"]
[WhiteElo "2796"]
[BlackElo "2563"]
[TimeControl "180+1"]
[EndTime "8:29:37 PST"]
[Termination "NewBornNow won on time"]

1. e4 {[%clk 0:03:00.9]} 1... c5 {[%clk 0:02:55.7]} 2. Nf3 {[%clk 0:03:00.7]}
2... d6 {[%clk 0:02:55.9]} 3. d4 {[%clk 0:02:59.9]} 3... cxd4 {[%clk 0:02:56.8]}
4. Nxd4 {[%clk 0:03:00.1]} 4... Nf6 {[%clk 0:02:56.7]} 5. Bd3 {[%clk 0:03:00.1]}
5... g6 {[%clk 0:02:53.9]} 6. c4 {[%clk 0:02:58.8]} 6... Bg7 {[%clk 0:02:53.3]}
7. Nc3 {[%clk 0:02:58.8]} 7... O-O {[%clk 0:02:52.1]} 8. O-O {[%clk 0:02:58.4]}
8... Nc6 {[%clk 0:02:52.1]} 9. Nc2 {[%clk 0:02:56.5]} 9... Be6 {[%clk
0:02:48.1]} 10. Ne3 {[%clk 0:02:53.2]} 10... Rc8 {[%clk 0:02:47.3]} 11. Be2
{[%clk 0:02:51.4]} 11... Nd7 {[%clk 0:02:45.4]} 12. Bd2 {[%clk 0:02:50.1]} 12...
a6 {[%clk 0:02:40.9]} 13. Rc1 {[%clk 0:02:47.8]} 13... Nd4 {[%clk 0:02:33.4]}
14. Ned5 {[%clk 0:02:43.6]} 14... Bxd5 {[%clk 0:02:26.5]} 15. exd5 {[%clk
0:02:36.8]} 15... Nxe2+ {[%clk 0:02:21.8]} 16. Qxe2 {[%clk 0:02:36.2]} 16... Ne5
{[%clk 0:02:08.2]} 17. b3 {[%clk 0:02:34]} 17... f5 {[%clk 0:02:05.7]} 18. f4
{[%clk 0:02:20.9]} 18... Ng4 {[%clk 0:02:04.3]} 19. h3 {[%clk 0:02:18.8]} 19...
Qb6+ {[%clk 0:01:50.8]} 20. Kh1 {[%clk 0:02:16]} 20... Nf6 {[%clk 0:01:45.7]}
21. Be3 {[%clk 0:02:10.8]} 21... Qa5 {[%clk 0:01:42.7]} 22. Bd4 {[%clk
0:02:05.9]} 22... Nh5 {[%clk 0:01:32]} 23. Qe6+ {[%clk 0:02:03.1]} 23... Kh8
{[%clk 0:01:16.4]} 24. Bxg7+ {[%clk 0:02:02.5]} 24... Kxg7 {[%clk 0:01:12]} 25.
Qxe7+ {[%clk 0:02:01.5]} 25... Rf7 {[%clk 0:01:11.5]} 26. Qe3 {[%clk 0:01:59.3]}
26... Rcc7 {[%clk 0:01:03.3]} 27. Kh2 {[%clk 0:01:51.9]} 27... Rce7 {[%clk
0:01:01.6]} 28. Qd4+ {[%clk 0:01:51.4]} 28... Nf6 {[%clk 0:01:00.6]} 29. Rfe1
{[%clk 0:01:48.3]} 29... Qa3 {[%clk 0:00:51]} 30. Rcd1 {[%clk 0:01:42.6]} 30...
Qb2 {[%clk 0:00:37.9]} 31. Rd2 {[%clk 0:01:35]} 31... Qa3 {[%clk 0:00:34.9]} 32.
Re6 {[%clk 0:01:23.2]} 32... Qc1 {[%clk 0:00:21.5]} 33. Rde2 {[%clk 0:01:15.9]}
33... Rd7 {[%clk 0:00:10.8]} 34. Na4 {[%clk 0:01:12.3]} 34... Kh6 {[%clk
0:00:09.9]} 35. Rxf6 {[%clk 0:01:06.1]} 35... Rxf6 {[%clk 0:00:10.8]} 36. Qxf6
{[%clk 0:01:06.1]} 36... Qxf4+ {[%clk 0:00:10.7]} 37. g3 {[%clk 0:01:06.2]}
37... Qf3 {[%clk 0:00:08.9]} 38. Qb2 {[%clk 0:01:00.3]} 38... f4 {[%clk
0:00:08.1]} 39. Rg2 {[%clk 0:01:00.1]} 39... Re7 {[%clk 0:00:06.7]} 40. Qd2
{[%clk 0:00:47.6]} 40... Re3 {[%clk 0:00:06.4]} 41. gxf4 {[%clk 0:00:42.5]}
41... Qxf4+ {[%clk 0:00:07.3]} 42. Kg1 {[%clk 0:00:40.2]} 42... Kg7 {[%clk
0:00:07.2]} 43. Nb2 {[%clk 0:00:35]} 43... Qe5 {[%clk 0:00:07.1]} 44. Kf2 {[%clk
0:00:20.4]} 44... Qf4+ {[%clk 0:00:06.8]} 45. Kg1 {[%clk 0:00:20.4]} 45... Qe5
{[%clk 0:00:07]} 46. Nd1 {[%clk 0:00:15.3]} 46... Re1+ {[%clk 0:00:06.7]} 47.
Kf2 {[%clk 0:00:15.4]} 47... Re4 {[%clk 0:00:04.9]} 48. Qc3 {[%clk 0:00:14.1]}
48... Rd4 {[%clk 0:00:04.6]} 49. Rg4 {[%clk 0:00:10.9]} 49... Rf4+ {[%clk
0:00:03.6]} 50. Rxf4 {[%clk 0:00:10]} 50... Kh6 {[%clk 0:00:01.8]} 51. Qxe5
{[%clk 0:00:10]} 51... dxe5 {[%clk 0:00:02.7]} 52. Rf7 {[%clk 0:00:10.6]} 52...
e4 {[%clk 0:00:03.6]} 53. d6 {[%clk 0:00:11.1]} 53... e3+ {[%clk 0:00:04.5]} 54.
Kxe3 {[%clk 0:00:11.2]} 1-0

[Event "Early-Titled-Tuesday-Blitz-February-20-2024"]
[Site "Chess.com"]
[Date "2024.02.20"]
[Round "3"]
[White "ATM622"]
[Black "traviscottofficial"]
[Result "1/2-1/2"]
[WhiteElo "2490"]
[BlackElo "2756"]
[TimeControl "180+1"]
[EndTime "8:29:39 PST"]
[Termination "Game drawn - insufficient material"]

1. d4 {[%clk 0:02:58.2]} 1... Nf6 {[%clk 0:02:59.2]} 2. c4 {[%clk 0:02:57.6]}
2... e6 {[%clk 0:02:57.9]} 3. g3 {[%clk 0:02:56.7]} 3... d5 {[%clk 0:02:58.1]}
4. Bg2 {[%clk 0:02:56.6]} 4... Be7 {[%clk 0:02:58.7]} 5. Nf3 {[%clk 0:02:56.1]}
5... O-O {[%clk 0:02:59.2]} 6. O-O {[%clk 0:02:56.3]} 6... dxc4 {[%clk
0:02:55.1]} 7. Ne5 {[%clk 0:02:56.1]} 7... a6 {[%clk 0:02:52.4]} 8. Nxc4 {[%clk
0:02:55.6]} 8... c5 {[%clk 0:02:49.4]} 9. dxc5 {[%clk 0:02:53]} 9... Qxd1 {[%clk
0:02:49]} 10. Rxd1 {[%clk 0:02:52.7]} 10... Bxc5 {[%clk 0:02:49.9]} 11. a3
{[%clk 0:02:50.2]} 11... Nbd7 {[%clk 0:02:35.8]} 12. b4 {[%clk 0:02:49.8]} 12...
Be7 {[%clk 0:02:30]} 13. Bf4 {[%clk 0:02:42.8]} 13... Nd5 {[%clk 0:01:44]} 14.
Rxd5 {[%clk 0:02:10.1]} 14... exd5 {[%clk 0:01:44.9]} 15. Bxd5 {[%clk
0:02:10.1]} 15... Nf6 {[%clk 0:01:44.1]} 16. Bf3 {[%clk 0:02:07.7]} 16... Be6
{[%clk 0:01:42]} 17. Nbd2 {[%clk 0:02:03.4]} 17... Bd5 {[%clk 0:01:34.1]} 18.
Nb6 {[%clk 0:01:57.2]} 18... Rad8 {[%clk 0:01:26.8]} 19. Bc7 {[%clk 0:01:53.4]}
19... Bxf3 {[%clk 0:01:26.9]} 20. Nxf3 {[%clk 0:01:40.4]} 20... Rde8 {[%clk
0:01:26.6]} 21. Rc1 {[%clk 0:01:31.5]} 21... h6 {[%clk 0:00:51.7]} 22. Kg2
{[%clk 0:01:28.2]} 22... Kh7 {[%clk 0:00:50.9]} 23. Ne5 {[%clk 0:01:20.3]} 23...
Bd8 {[%clk 0:00:41.8]} 24. Bxd8 {[%clk 0:01:19.7]} 24... Rxd8 {[%clk 0:00:33.8]}
25. Rc7 {[%clk 0:01:19.3]} 25... Rde8 {[%clk 0:00:32.4]} 26. f4 {[%clk
0:01:14.4]} 26... Kg8 {[%clk 0:00:23.3]} 27. Kf3 {[%clk 0:01:12.9]} 27... Rb8
{[%clk 0:00:21.6]} 28. Ned7 {[%clk 0:01:12.1]} 28... Nxd7 {[%clk 0:00:21.5]} 29.
Nxd7 {[%clk 0:01:12.3]} 29... Rfc8 {[%clk 0:00:21]} 30. Rxc8+ {[%clk 0:00:54]}
30... Rxc8 {[%clk 0:00:21.9]} 31. Nc5 {[%clk 0:00:51.5]} 31... b6 {[%clk
0:00:19.4]} 32. Nxa6 {[%clk 0:00:50.3]} 32... Rc3+ {[%clk 0:00:19.9]} 33. Ke4
{[%clk 0:00:50.7]} 33... Rxa3 {[%clk 0:00:20.7]} 34. b5 {[%clk 0:00:45.6]} 34...
Kf8 {[%clk 0:00:17.2]} 35. Kd5 {[%clk 0:00:42.9]} 35... Rc3 {[%clk 0:00:15.9]}
36. Kd6 {[%clk 0:00:36.8]} 36... Ke8 {[%clk 0:00:15.9]} 37. Nb4 {[%clk
0:00:31.7]} 37... Rc5 {[%clk 0:00:14.8]} 38. Nd5 {[%clk 0:00:24]} 38... Kd8
{[%clk 0:00:15.2]} 39. Nxb6 {[%clk 0:00:19.5]} 39... Rxb5 {[%clk 0:00:15.7]} 40.
Nc4 {[%clk 0:00:15.7]} 40... Rb1 {[%clk 0:00:13.1]} 41. e4 {[%clk 0:00:07]}
41... Rh1 {[%clk 0:00:10.3]} 42. h4 {[%clk 0:00:06.8]} 42... Rg1 {[%clk
0:00:10.1]} 43. Ne5 {[%clk 0:00:07.1]} 43... Ke8 {[%clk 0:00:10.6]} 44. g4
{[%clk 0:00:02.9]} 44... f6 {[%clk 0:00:11.1]} 45. Ng6 {[%clk 0:00:02.5]} 45...
Rxg4 {[%clk 0:00:11.4]} 46. h5 {[%clk 0:00:02.2]} 46... Kf7 {[%clk 0:00:10.1]}
47. e5 {[%clk 0:00:02.3]} 47... fxe5 {[%clk 0:00:09.5]} 48. Nxe5+ {[%clk
0:00:02.5]} 48... Kf6 {[%clk 0:00:09.1]} 49. Nxg4+ {[%clk 0:00:02.8]} 49... Kf5
{[%clk 0:00:09.8]} 50. Ne5 {[%clk 0:00:03]} 50... Kxf4 {[%clk 0:00:10.5]} 51.
Ke6 {[%clk 0:00:03.3]} 51... Kg5 {[%clk 0:00:11.1]} 52. Kf7 {[%clk 0:00:03.6]}
52... Kxh5 {[%clk 0:00:10.4]} 53. Kxg7 {[%clk 0:00:03.9]} 53... Kg5 {[%clk
0:00:11.1]} 54. Ng6 {[%clk 0:00:04.3]} 54... h5 {[%clk 0:00:11.3]} 55. Kh7
{[%clk 0:00:04.6]} 55... h4 {[%clk 0:00:10.6]} 56. Nxh4 {[%clk 0:00:04.6]}
1/2-1/2

[Event "Early-Titled-Tuesday-Blitz-February-20-2024"]
[Site "Chess.com"]
[Date "2024.02.20"]
[Round "3"]
[White "joshdaruca"]
[Black "dropstoneDP"]
[Result "1/2-1/2"]
[WhiteElo "2771"]
[BlackElo "3030"]
[TimeControl "180+1"]
[EndTime "8:29:40 PST"]
[Termination "Game drawn by repetition"]

1. b3 {[%clk 0:02:54.5]} 1... Nf6 {[%clk 0:02:46.9]} 2. Bb2 {[%clk 0:02:54.2]}
2... c5 {[%clk 0:02:47.3]} 3. Nf3 {[%clk 0:02:51.9]} 3... Nc6 {[%clk 0:02:46.8]}
4. e3 {[%clk 0:02:52.5]} 4... g6 {[%clk 0:02:42.9]} 5. Bxf6 {[%clk 0:02:49.3]}
5... exf6 {[%clk 0:02:41.7]} 6. c4 {[%clk 0:02:50]} 6... d5 {[%clk 0:02:41.7]}
7. cxd5 {[%clk 0:02:49]} 7... Qxd5 {[%clk 0:02:42.6]} 8. Nc3 {[%clk 0:02:49.4]}
8... Qd8 {[%clk 0:02:43.2]} 9. Bb5 {[%clk 0:02:49.3]} 9... Bd7 {[%clk
0:02:43.4]} 10. d4 {[%clk 0:02:48.2]} 10... cxd4 {[%clk 0:02:43]} 11. Nxd4
{[%clk 0:02:48.4]} 11... Bb4 {[%clk 0:02:40.5]} 12. Ne2 {[%clk 0:02:26.6]} 12...
O-O {[%clk 0:02:39]} 13. O-O {[%clk 0:02:21.4]} 13... Bg4 {[%clk 0:02:37.4]} 14.
Qxd8 {[%clk 0:02:17.1]} 14... Rfxd8 {[%clk 0:02:35.1]} 15. a3 {[%clk 0:02:15.8]}
15... Bxc3 {[%clk 0:02:22.1]} 16. Nxc3 {[%clk 0:02:14.5]} 16... Rac8 {[%clk
0:02:22]} 17. Ne4 {[%clk 0:01:51.7]} 17... Kg7 {[%clk 0:02:18.7]} 18. Rac1
{[%clk 0:01:48.4]} 18... Ne5 {[%clk 0:02:10.8]} 19. h3 {[%clk 0:01:40.4]} 19...
Be6 {[%clk 0:02:09.9]} 20. Nc5 {[%clk 0:01:39.1]} 20... a6 {[%clk 0:01:30.2]}
21. Be2 {[%clk 0:01:26.9]} 21... a5 {[%clk 0:01:28.3]} 22. Nxb7 {[%clk
0:01:18.5]} 22... Rd2 {[%clk 0:01:16.1]} 23. Ba6 {[%clk 0:00:35.2]} 23... Ra8
{[%clk 0:01:14.2]} 24. Bc4 {[%clk 0:00:32.9]} 24... Bxc4 {[%clk 0:01:02.5]} 25.
bxc4 {[%clk 0:00:33.8]} 25... Ra7 {[%clk 0:01:02.5]} 26. Nc5 {[%clk 0:00:32.3]}
26... Ra2 {[%clk 0:01:03.1]} 27. Rc3 {[%clk 0:00:24.9]} 27... Rc7 {[%clk
0:01:02.6]} 28. Nb3 {[%clk 0:00:20.2]} 28... Rxc4 {[%clk 0:01:01.2]} 29. Rxc4
{[%clk 0:00:16]} 29... Nxc4 {[%clk 0:01:02.1]} 30. Rc1 {[%clk 0:00:16.1]} 30...
Rxa3 {[%clk 0:01:02.7]} 31. Rxc4 {[%clk 0:00:16.5]} 31... Rxb3 {[%clk
0:01:02.9]} 32. Rc7 {[%clk 0:00:15.8]} 32... a4 {[%clk 0:01:02.1]} 33. Ra7
{[%clk 0:00:16.5]} 33... a3 {[%clk 0:01:02.6]} 34. g3 {[%clk 0:00:17]} 34... f5
{[%clk 0:01:01.6]} 35. Kg2 {[%clk 0:00:17.3]} 35... Kf6 {[%clk 0:01:02.1]} 36.
h4 {[%clk 0:00:17.9]} 36... Ke6 {[%clk 0:01:00.8]} 37. Kf3 {[%clk 0:00:18.4]}
37... h6 {[%clk 0:01:00.5]} 38. Kg2 {[%clk 0:00:15]} 38... f6 {[%clk 0:00:48.8]}
39. Kf3 {[%clk 0:00:14.8]} 39... g5 {[%clk 0:00:48.4]} 40. hxg5 {[%clk
0:00:15.1]} 40... hxg5 {[%clk 0:00:48.3]} 41. Ra5 {[%clk 0:00:13.4]} 41... Rc3
{[%clk 0:00:29.3]} 42. g4 {[%clk 0:00:10.5]} 42... f4 {[%clk 0:00:26.3]} 43. Ke4
{[%clk 0:00:09.5]} 43... fxe3 {[%clk 0:00:26.2]} 44. fxe3 {[%clk 0:00:10.4]}
44... Kd6 {[%clk 0:00:25.2]} 45. Ra6+ {[%clk 0:00:09.6]} 45... Kc5 {[%clk
0:00:25.1]} 46. Rxf6 {[%clk 0:00:09.8]} 46... Kb5 {[%clk 0:00:25.4]} 47. Rf2
{[%clk 0:00:08.5]} 47... Rc8 {[%clk 0:00:22.3]} 48. Ra2 {[%clk 0:00:07]} 48...
Kb4 {[%clk 0:00:22.8]} 49. Kf5 {[%clk 0:00:07.9]} 49... Rc5+ {[%clk 0:00:22.3]}
50. Kf6 {[%clk 0:00:07.6]} 50... Kb3 {[%clk 0:00:23.2]} 51. Ra1 {[%clk
0:00:05.9]} 51... Kb2 {[%clk 0:00:23.1]} 52. Rg1 {[%clk 0:00:05.8]} 52... a2
{[%clk 0:00:22.5]} 53. e4 {[%clk 0:00:06.2]} 53... Rc1 {[%clk 0:00:09.1]} 54.
Rg2+ {[%clk 0:00:06.3]} 54... Rc2 {[%clk 0:00:09.8]} 55. Rg1 {[%clk 0:00:06.8]}
55... a1=Q {[%clk 0:00:08.3]} 56. Rxa1 {[%clk 0:00:05.8]} 56... Kxa1 {[%clk
0:00:09.2]} 57. Kxg5 {[%clk 0:00:05.3]} 57... Kb2 {[%clk 0:00:10]} 58. e5 {[%clk
0:00:05.8]} 58... Kc3 {[%clk 0:00:10.4]} 59. e6 {[%clk 0:00:06.4]} 59... Kd4
{[%clk 0:00:10]} 60. e7 {[%clk 0:00:06.1]} 60... Re2 {[%clk 0:00:07.6]} 61. Kf6
{[%clk 0:00:06.6]} 61... Kd5 {[%clk 0:00:08]} 62. Kf7 {[%clk 0:00:07.1]} 62...
Rf2+ {[%clk 0:00:08.2]} 63. Kg7 {[%clk 0:00:07.5]} 63... Re2 {[%clk 0:00:08.6]}
64. Kf8 {[%clk 0:00:07.8]} 64... Rf2+ {[%clk 0:00:08.9]} 65. Kg7 {[%clk
0:00:08.4]} 65... Re2 {[%clk 0:00:09.4]} 66. Kf7 {[%clk 0:00:09]} 66... Rf2+
{[%clk 0:00:10]} 67. Kg7 {[%clk 0:00:09.3]} 1/2-1/2

[Event "Early-Titled-Tuesday-Blitz-February-20-2024"]
[Site "Chess.com"]
[Date "2024.02.20"]
[Round "3"]
[White "Lukianoo"]
[Black "Aygehovit1992"]
[Result "1-0"]
[WhiteElo "2904"]
[BlackElo "2688"]
[TimeControl "180+1"]
[EndTime "8:29:40 PST"]
[Termination "Lukianoo won on time"]

1. e4 {[%clk 0:03:00.9]} 1... c5 {[%clk 0:02:59.8]} 2. Nf3 {[%clk 0:03:00.5]}
2... e6 {[%clk 0:03:00.3]} 3. c3 {[%clk 0:03:00.4]} 3... d5 {[%clk 0:02:59.3]}
4. e5 {[%clk 0:03:01]} 4... d4 {[%clk 0:02:58.6]} 5. Bd3 {[%clk 0:03:01.3]} 5...
Nc6 {[%clk 0:02:51]} 6. O-O {[%clk 0:02:58.9]} 6... Nge7 {[%clk 0:02:45.7]} 7.
Re1 {[%clk 0:02:57.3]} 7... Ng6 {[%clk 0:02:38.5]} 8. g3 {[%clk 0:02:57.2]} 8...
b6 {[%clk 0:02:34.6]} 9. Be4 {[%clk 0:02:56.1]} 9... Bb7 {[%clk 0:02:35]} 10. h4
{[%clk 0:02:56.7]} 10... Be7 {[%clk 0:02:32.3]} 11. h5 {[%clk 0:02:56.1]} 11...
Nf8 {[%clk 0:02:31.6]} 12. Na3 {[%clk 0:02:53.4]} 12... g5 {[%clk 0:02:24.2]}
13. d3 {[%clk 0:02:49.5]} 13... h6 {[%clk 0:02:20.8]} 14. Nc2 {[%clk 0:02:40.2]}
14... dxc3 {[%clk 0:02:19.1]} 15. bxc3 {[%clk 0:02:41.1]} 15... Qc7 {[%clk
0:02:18.6]} 16. d4 {[%clk 0:02:40.8]} 16... O-O-O {[%clk 0:02:18.2]} 17. a4
{[%clk 0:02:27]} 17... Nd7 {[%clk 0:02:04.6]} 18. Ba3 {[%clk 0:02:23.2]} 18...
g4 {[%clk 0:01:54.7]} 19. Nh2 {[%clk 0:02:22.9]} 19... Ndxe5 {[%clk 0:01:52.5]}
20. a5 {[%clk 0:02:12.2]} 20... f5 {[%clk 0:01:45.6]} 21. axb6 {[%clk
0:02:12.1]} 21... axb6 {[%clk 0:01:44.7]} 22. Bg2 {[%clk 0:02:11.1]} 22... Rhg8
{[%clk 0:01:10.6]} 23. Qe2 {[%clk 0:02:08.2]} 23... Nf3+ {[%clk 0:01:06.2]} 24.
Nxf3 {[%clk 0:02:06.3]} 24... gxf3 {[%clk 0:01:07.1]} 25. Bxf3 {[%clk
0:02:00.2]} 25... Bd6 {[%clk 0:01:01.2]} 26. Kf1 {[%clk 0:01:05.1]} 26... Bxg3
{[%clk 0:00:30.7]} 27. fxg3 {[%clk 0:01:04.9]} 27... Qxg3 {[%clk 0:00:30.9]} 28.
Qxe6+ {[%clk 0:00:43.7]} 28... Kc7 {[%clk 0:00:29.1]} 29. Bxc6 {[%clk
0:00:43.5]} 29... Qh3+ {[%clk 0:00:14.2]} 30. Ke2 {[%clk 0:00:35]} 30... Bxc6
{[%clk 0:00:14.4]} 31. Kd2 {[%clk 0:00:34.8]} 31... Rg2+ {[%clk 0:00:13.1]} 32.
Re2 {[%clk 0:00:34]} 32... Rxe2+ {[%clk 0:00:10.9]} 33. Qxe2 {[%clk 0:00:34.9]}
33... Re8 {[%clk 0:00:08.2]} 34. Qf2 {[%clk 0:00:34.7]} 34... Bb5 {[%clk
0:00:04.7]} 35. Re1 {[%clk 0:00:33.5]} 35... Qd3+ {[%clk 0:00:04.6]} 36. Kc1
{[%clk 0:00:33]} 36... Qxc3 {[%clk 0:00:03.6]} 37. Rxe8 {[%clk 0:00:31.9]} 37...
Bxe8 {[%clk 0:00:04.5]} 38. dxc5 {[%clk 0:00:32.1]} 38... Ba4 {[%clk 0:00:04.7]}
39. cxb6+ {[%clk 0:00:31.4]} 39... Kb7 {[%clk 0:00:05.2]} 40. Bb2 {[%clk
0:00:27.9]} 40... Qc4 {[%clk 0:00:03.1]} 41. Kb1 {[%clk 0:00:23.4]} 41... f4
{[%clk 0:00:02.9]} 42. Nd4 {[%clk 0:00:20.3]} 42... Qd3+ {[%clk 0:00:02.3]} 43.
Ka2 {[%clk 0:00:20.6]} 43... Qc4+ {[%clk 0:00:02.4]} 44. Ka3 {[%clk 0:00:20.4]}
44... Bd7 {[%clk 0:00:02.5]} 45. Qf3+ {[%clk 0:00:19.6]} 45... Kxb6 {[%clk
0:00:02.2]} 46. Qb3+ {[%clk 0:00:19.7]} 46... Qxb3+ {[%clk 0:00:02]} 47. Kxb3
{[%clk 0:00:20.6]} 47... Bg4 {[%clk 0:00:02]} 48. Bc1 {[%clk 0:00:19.3]} 48...
Bxh5 {[%clk 0:00:02.2]} 49. Bxf4 {[%clk 0:00:19.3]} 49... Bf7+ {[%clk
0:00:02.8]} 50. Kb4 {[%clk 0:00:19.7]} 50... h5 {[%clk 0:00:03.4]} 51. Bg5
{[%clk 0:00:19.8]} 51... Kc7 {[%clk 0:00:03.1]} 52. Kc5 {[%clk 0:00:20.7]} 52...
Kd7 {[%clk 0:00:03.7]} 53. Bh4 {[%clk 0:00:20.2]} 53... Bg6 {[%clk 0:00:03.8]}
54. Nc6 {[%clk 0:00:20.1]} 54... Ke6 {[%clk 0:00:03.7]} 55. Kd4 {[%clk
0:00:20.4]} 55... Bh7 {[%clk 0:00:02.2]} 56. Be1 {[%clk 0:00:19.2]} 56... Kf5
{[%clk 0:00:02.4]} 57. Ne7+ {[%clk 0:00:19.1]} 57... Kg4 {[%clk 0:00:02.9]} 58.
Nd5 {[%clk 0:00:19.7]} 58... Bb1 {[%clk 0:00:02.1]} 59. Ke5 {[%clk 0:00:18.9]}
59... h4 {[%clk 0:00:01.7]} 60. Nf6+ {[%clk 0:00:19.2]} 60... Kg5 {[%clk
0:00:01.3]} 61. Bf2 {[%clk 0:00:18.1]} 61... h3 {[%clk 0:00:01.7]} 62. Bg1
{[%clk 0:00:18.6]} 62... Kh4 {[%clk 0:00:01.6]} 63. Bh2 {[%clk 0:00:19.1]} 1-0